lending/lending_fUSD_20240710
["ID","MTS","AMOUNT","RATE_DAILY","PERIOD"]
[331649928,1720605046818,-5628.1935752,0.00013752,2]
[331649929,1720605046827,-240.18690552,0.00013752,2]
[331649930,1720605046837,-500.0,0.00013752,2]
[331649931,1720605046847,-375.90270865,0.00013752,2]
[331649932,1720605046856,-500.0,0.00013752,2]
[331649933,1720605046865,-809.57,0.00013753,2]
[331649934,1720605046875,-918.63,0.00013753,2]
[331649935,1720605046884,-500.0,0.00013753,2]
[331649936,1720605046893,-581.8,0.00013753,2]
[331649937,1720605046902,-500.0,0.00013753,2]
[331649938,1720605046911,-554.12,0.00013753,2]
[331649939,1720605046920,-568.67,0.00013753,2]
[331649940,1720605046930,-500.0,0.00013753,2]
[331649941,1720605046939,-153.320665,0.00013753,2]
[331649942,1720605046953,-500.0,0.00013753,2]
[331649943,1720605046962,-532.07,0.00013753,2]
[331649944,1720605046971,-376.10070821,0.00013753,2]
[331649945,1720605046981,-500.0,0.00013753,2]
[331649946,1720605046993,-500.0,0.00013753,2]
[331649947,1720605047002,-500.0,0.00013753,2]
[331649948,1720605047011,-500.0,0.00013753,2]
[331649949,1720605047020,-500.0,0.00013753,2]
[331649950,1720605047029,-500.0,0.00013753,2]
[331649951,1720605047038,-500.0,0.00013753,2]
[331649952,1720605047049,-500.0,0.00013753,2]
[331649953,1720605047059,-500.0,0.00013753,2]
[331649954,1720605047069,-500.0,0.00013753,2]
[331649955,1720605047078,-833.89,0.00013753,2]
[331649956,1720605047088,-500.0,0.00013753,2]
[331649957,1720605047098,-500.0,0.00013753,2]
[331649958,1720605047107,-1090.92,0.00013753,2]
[331649959,1720605047117,-500.0,0.00013753,2]
[331649960,1720605047126,-688.49,0.00013753,2]
[331649961,1720605047136,-500.0,0.00013753,2]
[331649962,1720605047145,-500.0,0.00013753,2]
[331649963,1720605047155,-500.0,0.00013753,2]
[331649964,1720605047165,-909.27,0.00013753,2]
[331649965,1720605047174,-500.0,0.00013753,2]
[331649966,1720605047183,-500.0,0.00013753,2]
[331649967,1720605047192,-665.0,0.00013753,2]
[331649968,1720605047202,-502.27,0.00013753,2]
[331649969,1720605047212,-730.97,0.00013753,2]
[331649970,1720605047221,-500.0,0.00013753,2]
[331649971,1720605047230,-712.04,0.00013753,2]
[331649972,1720605047242,-500.0,0.00013753,2]
[331649973,1720605047251,-500.0,0.00013753,2]
[331649974,1720605047261,-500.0,0.00013753,2]
[331649975,1720605047270,-500.0,0.00013753,2]
[331649976,1720605047279,-500.0,0.00013753,2]
[331649977,1720605047289,-500.0,0.00013753,2]
[331649978,1720605047299,-500.0,0.00013753,2]
[331649979,1720605047309,-500.0,0.00013753,2]
[331649980,1720605047318,-500.0,0.00013753,2]
[331649981,1720605047329,-500.0,0.00013753,2]
[331649982,1720605047338,-1185.53,0.00013753,2]
[331649983,1720605047348,-500.0,0.00013753,2]
[331649984,1720605047357,-500.0,0.00013753,2]
[331649985,1720605047367,-500.0,0.00013753,2]
[331649986,1720605047377,-500.0,0.00013753,2]
[331649987,1720605047387,-500.0,0.00013753,2]
[331649988,1720605047396,-500.0,0.00013753,2]
[331649989,1720605047406,-500.0,0.00013753,2]
[331649990,1720605047415,-500.0,0.00013753,2]
[331649991,1720605047425,-500.0,0.00013753,2]
[331649992,1720605047434,-500.0,0.00013753,2]
[331649993,1720605047443,-500.0,0.00013753,2]
[331649994,1720605047452,-500.0,0.00013753,2]
[331649995,1720605047461,-500.0,0.00013753,2]
[331649996,1720605047470,-500.0,0.00013753,2]
[331649997,1720605047481,-832.2,0.00013753,2]
[331649998,1720605047493,-500.0,0.00013753,2]
[331649999,1720605047503,-500.0,0.00013753,2]
[331650000,1720605047512,-422.54466388,0.00013753,2]
[331650001,1720605047521,-278.645541,0.00013753,2]
[331650002,1720605047531,-500.0,0.00013753,2]
[331650003,1720605047541,-500.0,0.00013753,2]
[331650004,1720605047551,-500.0,0.00013753,2]
[331650005,1720605047560,-500.0,0.00013753,2]
[331650006,1720605047570,-576.04,0.00013753,2]
[331650007,1720605047579,-511.82,0.00013753,2]
[331650008,1720605047588,-500.0,0.00013753,2]
[331650009,1720605047598,-500.0,0.00013753,2]
[331650010,1720605047607,-500.0,0.00013753,2]
[331650011,1720605047616,-728.14,0.00013753,2]
[331650012,1720605047626,-598.71,0.00013753,2]
[331650013,1720605047635,-151.0,0.00013753,2]
[331650014,1720605047644,-500.0,0.00013753,2]
[331650015,1720605047653,-500.0,0.00013753,2]
[331650016,1720605047663,-815.92,0.00013753,2]
[331650017,1720605047673,-500.0,0.00013753,2]
[331650018,1720605047682,-500.0,0.00013753,2]
[331650019,1720605047691,-651.84,0.00013753,2]
[331650020,1720605047700,-906.4,0.00013753,2]
[331650021,1720605047709,-500.0,0.00013753,2]
[331650022,1720605047718,-500.0,0.00013753,2]
[331650023,1720605047728,-691.82,0.00013753,2]
[331650024,1720605047739,-500.0,0.00013753,2]
[331650025,1720605047748,-500.0,0.00013753,2]
[331650026,1720605047757,-500.0,0.00013753,2]
[331650027,1720605047766,-305.48207473,0.00013753,2]
[331650028,1720605047775,-500.0,0.00013753,2]
[331650029,1720605047784,-500.0,0.00013753,2]
[331650030,1720605047794,-500.0,0.00013753,2]
[331650031,1720605047803,-500.0,0.00013753,2]
[331650032,1720605047813,-1619.05,0.00013753,2]
[331650033,1720605047822,-715.64,0.00013753,2]
[331650034,1720605047831,-500.0,0.00013753,2]
[331650035,1720605047840,-500.0,0.00013753,2]
[331650036,1720605047850,-707.83,0.00013753,2]
[331650037,1720605047859,-949.03,0.00013753,2]
[331650038,1720605047869,-1045.95,0.00013753,2]
[331650039,1720605047879,-500.0,0.00013753,2]
[331650040,1720605047889,-500.0,0.00013753,2]
[331650041,1720605047899,-500.0,0.00013753,2]
[331650042,1720605047909,-500.0,0.00013753,2]
[331650043,1720605047919,-1120.3,0.00013753,2]
[331650044,1720605047928,-500.0,0.00013753,2]
[331650045,1720605047938,-597.53,0.00013753,2]
[331650046,1720605047948,-889.25,0.00013753,2]
[331650047,1720605047958,-725.03,0.00013753,2]
[331650048,1720605047967,-621.78,0.00013753,2]
[331650049,1720605047978,-565.94,0.00013753,2]
[331650050,1720605047990,-605.34,0.00013753,2]
[331650051,1720605048000,-151.0,0.00013753,2]
[331650052,1720605048010,-500.0,0.00013753,2]
[331650053,1720605048019,-500.0,0.00013753,2]
[331650054,1720605048030,-500.0,0.00013753,2]
[331650055,1720605048040,-500.0,0.00013753,2]
[331650056,1720605048050,-650.88,0.00013753,2]
[331650057,1720605048059,-500.0,0.00013753,2]
[331650058,1720605048068,-500.0,0.00013753,2]
[331650059,1720605048078,-1256.77,0.00013753,2]
[331650060,1720605048087,-500.0,0.00013753,2]
[331650061,1720605048096,-712.2,0.00013753,2]
[331650062,1720605048106,-592.34,0.00013753,2]
[331650063,1720605048115,-268.64828301,0.00013753,2]
[331650064,1720605048124,-500.0,0.00013753,2]
[331650065,1720605048133,-544.07,0.00013753,2]
[331650066,1720605048142,-500.0,0.00013753,2]
[331650067,1720605048152,-500.0,0.00013753,2]
[331650068,1720605048161,-151.0,0.00013753,2]
[331650069,1720605048171,-709.17,0.00013753,2]
[331650070,1720605048180,-500.0,0.00013753,2]
[331650071,1720605048189,-691.8,0.00013753,2]
[331650072,1720605048199,-830.48,0.00013753,2]
[331650073,1720605048208,-500.0,0.00013753,2]
[331650074,1720605048217,-500.0,0.00013753,2]
[331650075,1720605048226,-500.0,0.00013753,2]
[331650076,1720605048235,-984.38,0.00013753,2]
[331650077,1720605048244,-500.0,0.00013753,2]
[331650078,1720605048254,-500.0,0.00013753,2]
[331650079,1720605048263,-614.1,0.00013753,2]
[331650080,1720605048272,-514.15,0.00013753,2]
[331650081,1720605048281,-500.0,0.00013753,2]
[331650082,1720605048290,-880.24,0.00013753,2]
[331650083,1720605048299,-787.51,0.00013753,2]
[331650084,1720605048308,-500.0,0.00013753,2]
[331650085,1720605048318,-690.8,0.00013753,2]
[331650086,1720605048327,-500.73,0.00013753,2]
[331650087,1720605048336,-931.15,0.00013753,2]
[331650088,1720605048344,-500.0,0.00013753,2]
[331650089,1720605048354,-715.81,0.00013753,2]
[331650090,1720605048363,-500.0,0.00013753,2]
[331650091,1720605048371,-500.0,0.00013753,2]
[331650092,1720605048380,-500.0,0.00013753,2]
[331650093,1720605048389,-500.0,0.00013753,2]
[331650094,1720605048398,-151.0,0.00013753,2]
[331650095,1720605048408,-500.0,0.00013753,2]
[331650096,1720605048417,-500.0,0.00013753,2]
[331650097,1720605048427,-618.34,0.00013753,2]
[331650098,1720605048435,-500.0,0.00013753,2]
[331650099,1720605048444,-683.27,0.00013753,2]
[331650100,1720605048452,-500.0,0.00013753,2]
[331650101,1720605048461,-541.68,0.00013753,2]
[331650102,1720605048470,-500.0,0.00013753,2]
[331650103,1720605048480,-615.77,0.00013753,2]
[331650104,1720605048491,-940.28,0.00013753,2]
[331650105,1720605048501,-500.0,0.00013753,2]
[331650106,1720605048510,-500.0,0.00013753,2]
[331650107,1720605048519,-565.66,0.00013753,2]
[331650108,1720605048531,-500.0,0.00013753,2]
[331650109,1720605048540,-500.0,0.00013753,2]
[331650110,1720605048550,-630.3,0.00013753,2]
[331650111,1720605048559,-1138.52,0.00013753,2]
[331650112,1720605048568,-500.0,0.00013753,2]
[331650113,1720605048577,-349.66473347,0.00013753,2]
[331650114,1720605048587,-500.0,0.00013753,2]
[331650115,1720605048596,-865.59,0.00013753,2]
[331650116,1720605048605,-500.0,0.00013753,2]
[331650117,1720605048614,-500.0,0.00013753,2]
[331650118,1720605048624,-500.0,0.00013753,2]
[331650119,1720605048634,-525.91,0.00013753,2]
[331650120,1720605048644,-500.0,0.00013753,2]
[331650121,1720605048655,-757.04,0.00013753,2]
[331650122,1720605048665,-500.0,0.00013753,2]
[331650123,1720605048674,-1016.5,0.00013753,2]
[331650124,1720605048683,-500.0,0.00013753,2]
[331650125,1720605048692,-629.98,0.00013753,2]
[331650126,1720605048700,-500.0,0.00013753,2]
[331650127,1720605048710,-151.0,0.00013753,2]
[331650128,1720605048719,-1127.67,0.00013753,2]
[331650129,1720605048728,-500.0,0.00013753,2]
[331650130,1720605048738,-500.0,0.00013753,2]
[331650131,1720605048747,-688.55,0.00013753,2]
[331650132,1720605048756,-500.0,0.00013753,2]
[331650133,1720605048765,-500.0,0.00013753,2]
[331650134,1720605048775,-889.17,0.00013753,2]
[331650135,1720605048784,-500.0,0.00013753,2]
[331650136,1720605048793,-853.5,0.00013753,2]
[331650137,1720605048802,-1661.49,0.00013753,2]
[331650138,1720605048812,-500.0,0.00013753,2]
[331650139,1720605048822,-621.87,0.00013753,2]
[331650140,1720605048830,-969.44,0.00013753,2]
[331650141,1720605048839,-500.0,0.00013753,2]
[331650142,1720605048849,-500.0,0.00013753,2]
[331650143,1720605048858,-500.0,0.00013753,2]
[331650144,1720605048867,-706.97,0.00013753,2]
[331650145,1720605048876,-636.3,0.00013753,2]
[331650146,1720605048885,-500.0,0.00013753,2]
[331650147,1720605048895,-818.65,0.00013753,2]
[331650148,1720605048904,-500.0,0.00013753,2]
[331650149,1720605048913,-500.0,0.00013753,2]
[331650150,1720605048922,-500.0,0.00013753,2]
[331650151,1720605048931,-767.29,0.00013753,2]
[331650152,1720605048941,-562.0,0.00013753,2]
[331650153,1720605048950,-636.74,0.00013753,2]
[331650154,1720605048960,-500.0,0.00013753,2]
[331650155,1720605048969,-850.97,0.00013753,2]
[331650156,1720605048979,-1162.05,0.00013753,2]
[331650157,1720605048988,-500.0,0.00013753,2]
[331650158,1720605048997,-591.32,0.00013753,2]
[331650159,1720605049007,-500.0,0.00013753,2]
[331650160,1720605049023,-153.66000003,0.00013753,2]
[331650161,1720605049031,-500.0,0.00013753,2]
[331650162,1720605049040,-500.0,0.00013753,2]
[331650163,1720605049050,-500.0,0.00013753,2]
[331650164,1720605049059,-500.0,0.00013753,2]
[331650165,1720605049069,-500.0,0.00013753,2]
[331650166,1720605049078,-500.0,0.00013753,2]
[331650167,1720605049087,-902.1,0.00013753,2]
[331650168,1720605049097,-538.09,0.00013753,2]
[331650169,1720605049106,-868.99,0.00013753,2]
[331650170,1720605049115,-500.0,0.00013753,2]
[331650171,1720605049124,-766.75,0.00013753,2]
[331650172,1720605049133,-576.02,0.00013753,2]
[331650173,1720605049142,-500.0,0.00013753,2]
[331650174,1720605049151,-1193.48,0.00013753,2]
[331650175,1720605049160,-507.56,0.00013753,2]
[331650176,1720605049169,-500.0,0.00013753,2]
[331650177,1720605049178,-500.0,0.00013753,2]
[331650178,1720605049188,-842.22,0.00013753,2]
[331650179,1720605049197,-204.28378973,0.00013753,2]
[331650180,1720605049206,-732.11,0.00013753,2]
[331650181,1720605049214,-500.0,0.00013753,2]
[331650182,1720605049224,-151.0,0.00013753,2]
[331650183,1720605049233,-500.0,0.00013753,2]
[331650184,1720605049243,-151.0,0.00013753,2]
[331650185,1720605049252,-151.0,0.00013753,2]
[331650186,1720605049262,-214.03394329,0.00013753,2]
[331650187,1720605049271,-500.0,0.00013753,2]
[331650188,1720605049280,-1021.16,0.00013753,2]
[331650189,1720605049289,-2170.18,0.00013753,2]
[331650190,1720605049298,-1234.09,0.00013753,2]
[331650191,1720605049307,-642.04,0.00013753,2]
[331650192,1720605049316,-676.92,0.00013753,2]
[331650193,1720605049325,-500.0,0.00013753,2]
[331650194,1720605049334,-500.0,0.00013753,2]
[331650195,1720605049343,-500.0,0.00013753,2]
[331650196,1720605049352,-1209.88,0.00013753,2]
[331650197,1720605049361,-752.3,0.00013753,2]
[331650198,1720605049370,-1202.0,0.00013753,2]
[331650199,1720605049379,-500.0,0.00013753,2]
[331650200,1720605049388,-500.0,0.00013753,2]
[331650201,1720605049397,-1565.99,0.00013753,2]
[331650202,1720605049406,-500.0,0.00013753,2]
[331650203,1720605049415,-500.0,0.00013753,2]
[331650204,1720605049424,-500.0,0.00013753,2]
[331650205,1720605049434,-500.0,0.00013753,2]
[331650206,1720605049443,-500.0,0.00013753,2]
[331650207,1720605049452,-500.0,0.00013753,2]
[331650208,1720605049461,-1474.53,0.00013753,2]
[331650209,1720605049470,-500.0,0.00013753,2]
[331650210,1720605049480,-913.86,0.00013753,2]
[331650211,1720605049491,-663.74,0.00013753,2]
[331650212,1720605049501,-151.0,0.00013753,2]
[331650213,1720605049510,-500.0,0.00013753,2]
[331650214,1720605049522,-745.7,0.00013753,2]
[331650215,1720605049532,-500.0,0.00013753,2]
[331650216,1720605049541,-500.0,0.00013753,2]
[331650217,1720605049550,-500.0,0.00013753,2]
[331650218,1720605049559,-867.31,0.00013753,2]
[331650219,1720605049569,-1340.01,0.00013753,2]
[331650220,1720605049578,-782.61,0.00013753,2]
[331650221,1720605049587,-1436.94,0.00013753,2]
[331650222,1720605049596,-804.29,0.00013753,2]
[331650223,1720605049606,-500.0,0.00013753,2]
[331650224,1720605049615,-870.61,0.00013753,2]
[331650225,1720605049624,-500.0,0.00013753,2]
[331650226,1720605049634,-1436.15,0.00013753,2]
[331650227,1720605049643,-500.0,0.00013753,2]
[331650228,1720605049653,-500.0,0.00013753,2]
[331650229,1720605049662,-649.98,0.00013753,2]
[331650230,1720605049671,-500.0,0.00013753,2]
[331650231,1720605049681,-500.0,0.00013753,2]
[331650232,1720605049690,-500.0,0.00013753,2]
[331650233,1720605049699,-500.0,0.00013753,2]
[331650234,1720605049708,-1443.66,0.00013753,2]
[331650235,1720605049717,-1092.49,0.00013753,2]
[331650236,1720605049727,-1671.66,0.00013753,2]
[331650237,1720605049851,-500.0,0.00013753,2]
[331650238,1720605049870,-1450.59,0.00013753,2]
[331650239,1720605049880,-500.0,0.00013753,2]
[331650240,1720605049889,-500.0,0.00013753,2]
[331650241,1720605049898,-813.67,0.00013753,2]
[331650242,1720605049908,-500.0,0.00013753,2]
[331650243,1720605049917,-606.93,0.00013753,2]
[331650244,1720605049926,-500.0,0.00013753,2]
[331650245,1720605049935,-500.0,0.00013753,2]
[331650246,1720605049944,-500.0,0.00013753,2]
[331650247,1720605049953,-1360.4,0.00013753,2]
[331650248,1720605049963,-871.89,0.00013753,2]
[331650249,1720605049972,-915.68,0.00013753,2]
[331650250,1720605049982,-500.0,0.00013753,2]
[331650251,1720605049991,-500.0,0.00013753,2]
[331650252,1720605050000,-500.0,0.00013753,2]
[331650253,1720605050009,-500.0,0.00013753,2]
[331650254,1720605050019,-500.0,0.00013753,2]
[331650255,1720605050028,-500.0,0.00013753,2]
[331650256,1720605050038,-500.0,0.00013753,2]
[331650257,1720605050047,-500.0,0.00013753,2]
[331650258,1720605050057,-500.0,0.00013753,2]
[331650259,1720605050067,-976.42,0.00013753,2]
[331650260,1720605050076,-500.0,0.00013753,2]
[331650261,1720605050085,-636.58,0.00013753,2]
[331650262,1720605050095,-1002.05,0.00013753,2]
[331650263,1720605050104,-500.0,0.00013753,2]
[331650264,1720605050113,-500.0,0.00013753,2]
[331650265,1720605050123,-500.0,0.00013753,2]
[331650266,1720605050132,-991.76,0.00013753,2]
[331650267,1720605050141,-500.0,0.00013753,2]
[331650268,1720605050152,-500.0,0.00013753,2]
[331650269,1720605050161,-553.22,0.00013753,2]
[331650270,1720605050171,-562.34,0.00013753,2]
[331650271,1720605050180,-500.0,0.00013753,2]
[331650272,1720605050190,-543.73,0.00013753,2]
[331650273,1720605050199,-500.0,0.00013753,2]
[331650274,1720605050210,-500.0,0.00013753,2]
[331650275,1720605050219,-500.0,0.00013753,2]
[331650276,1720605050228,-616.17,0.00013753,2]
[331650277,1720605050238,-500.0,0.00013753,2]
[331650278,1720605050247,-500.0,0.00013753,2]
[331650279,1720605050256,-500.0,0.00013753,2]
[331650280,1720605050265,-1586.1,0.00013753,2]
[331650281,1720605050275,-1006.17,0.00013753,2]
[331650282,1720605050284,-500.0,0.00013753,2]
[331650283,1720605050293,-500.0,0.00013753,2]
[331650284,1720605050302,-500.0,0.00013753,2]
[331650285,1720605050311,-513.37,0.00013753,2]
[331650286,1720605050320,-245.50901526,0.00013753,2]
[331650287,1720605050330,-701.68,0.00013753,2]
[331650288,1720605050339,-500.0,0.00013753,2]
[331650289,1720605050348,-554.38,0.00013753,2]
[331650290,1720605050358,-1108.96,0.00013753,2]
[331650291,1720605050367,-500.0,0.00013753,2]
[331650292,1720605050376,-500.0,0.00013753,2]
[331650293,1720605050386,-500.0,0.00013753,2]
[331650294,1720605050395,-1197.21,0.00013753,2]
[331650295,1720605050404,-521.59,0.00013753,2]
[331650296,1720605050414,-500.0,0.00013753,2]
[331650297,1720605050423,-500.0,0.00013753,2]
[331650298,1720605050432,-500.0,0.00013753,2]
[331650299,1720605050442,-500.0,0.00013753,2]
[331650300,1720605050451,-999.22,0.00013753,2]
[331650301,1720605050461,-500.0,0.00013753,2]
[331650302,1720605050470,-500.0,0.00013753,2]
[331650303,1720605050481,-500.0,0.00013753,2]
[331650304,1720605050491,-536.89,0.00013753,2]
[331650305,1720605050502,-500.0,0.00013753,2]
[331650306,1720605050511,-1000.0,0.00013753,2]
[331650307,1720605050520,-500.0,0.00013753,2]
[331650308,1720605050530,-151.0,0.00013753,2]
[331650309,1720605050540,-500.0,0.00013753,2]
[331650310,1720605050550,-500.0,0.00013753,2]
[331650311,1720605050559,-151.0,0.00013753,2]
[331650312,1720605050569,-500.0,0.00013753,2]
[331650313,1720605050579,-500.0,0.00013753,2]
[331650314,1720605050590,-500.0,0.00013753,2]
[331650315,1720605050600,-792.38,0.00013753,2]
[331650316,1720605050610,-565.73,0.00013753,2]
[331650317,1720605050621,-500.0,0.00013753,2]
[331650318,1720605050631,-500.0,0.00013753,2]
[331650319,1720605050644,-528.91,0.00013753,2]
[331650320,1720605050657,-500.0,0.00013753,2]
[331650321,1720605050668,-500.0,0.00013753,2]
[331650322,1720605050678,-500.0,0.00013753,2]
[331650323,1720605050688,-500.0,0.00013753,2]
[331650324,1720605050697,-812.24,0.00013753,2]
[331650325,1720605050707,-500.0,0.00013753,2]
[331650326,1720605050717,-607.47,0.00013753,2]
[331650327,1720605050727,-1231.83,0.00013753,2]
[331650328,1720605050737,-500.0,0.00013753,2]
[331650329,1720605050746,-500.0,0.00013753,2]
[331650330,1720605050755,-1674.57,0.00013753,2]
[331650331,1720605050764,-500.0,0.00013753,2]
[331650332,1720605050774,-1279.24,0.00013753,2]
[331650333,1720605050783,-651.76,0.00013753,2]
[331650334,1720605050792,-604.38,0.00013753,2]
[331650335,1720605050801,-1566.61,0.00013753,2]
[331650336,1720605050811,-151.0,0.00013753,2]
[331650337,1720605050821,-151.0,0.00013753,2]
[331650338,1720605050830,-500.0,0.00013753,2]
[331650339,1720605050839,-571.14,0.00013753,2]
[331650340,1720605050849,-754.22,0.00013753,2]
[331650341,1720605050858,-1153.57,0.00013753,2]
[331650342,1720605050869,-500.0,0.00013753,2]
[331650343,1720605050878,-764.39,0.00013753,2]
[331650344,1720605050887,-500.0,0.00013753,2]
[331650345,1720605050896,-500.0,0.00013753,2]
[331650346,1720605050906,-500.0,0.00013753,2]
[331650347,1720605050915,-500.0,0.00013753,2]
[331650348,1720605050925,-151.0,0.00013753,2]
[331650349,1720605050936,-500.0,0.00013753,2]
[331650350,1720605050946,-500.0,0.00013753,2]
[331650351,1720605050956,-1210.27,0.00013753,2]
[331650352,1720605050965,-590.75,0.00013753,2]
[331650353,1720605050974,-500.0,0.00013753,2]
[331650354,1720605050984,-1511.87,0.00013753,2]
[331650355,1720605050994,-500.0,0.00013753,2]
[331650356,1720605051004,-500.0,0.00013753,2]
[331650357,1720605051013,-971.13,0.00013753,2]
[331650358,1720605051023,-500.0,0.00013753,2]
[331650359,1720605051032,-1120.01,0.00013753,2]
[331650360,1720605051042,-787.47,0.00013753,2]
[331650361,1720605051051,-500.0,0.00013753,2]
[331650362,1720605051061,-151.0,0.00013753,2]
[331650363,1720605051070,-151.0,0.00013753,2]
[331650364,1720605051079,-500.0,0.00013753,2]
[331650365,1720605051089,-500.0,0.00013753,2]
[331650366,1720605051098,-500.0,0.00013753,2]
[331650367,1720605051107,-528.69,0.00013753,2]
[331650368,1720605051116,-500.0,0.00013753,2]
[331650369,1720605051126,-789.45,0.00013753,2]
[331650370,1720605051136,-1000.46,0.00013753,2]
[331650371,1720605051145,-500.0,0.00013753,2]
[331650372,1720605051154,-500.0,0.00013753,2]
[331650373,1720605051164,-500.0,0.00013753,2]
[331650374,1720605051174,-500.0,0.00013753,2]
[331650375,1720605051184,-1569.65,0.00013753,2]
[331650376,1720605051193,-500.0,0.00013753,2]
[331650377,1720605051203,-616.93,0.00013753,2]
[331650378,1720605051212,-542.3,0.00013753,2]
[331650379,1720605051222,-500.0,0.00013753,2]
[331650380,1720605051231,-948.91,0.00013753,2]
[331650381,1720605051241,-500.0,0.00013753,2]
[331650382,1720605051251,-643.36,0.00013753,2]
[331650383,1720605051261,-643.43,0.00013753,2]
[331650384,1720605051271,-500.0,0.00013753,2]
[331650385,1720605051280,-500.0,0.00013753,2]
[331650386,1720605051289,-531.02,0.00013753,2]
[331650387,1720605051298,-952.15,0.00013753,2]
[331650388,1720605051308,-500.0,0.00013753,2]
[331650389,1720605051317,-1377.05,0.00013753,2]
[331650390,1720605051326,-500.0,0.00013753,2]
[331650391,1720605051335,-503.38,0.00013753,2]
[331650392,1720605051344,-1702.42,0.00013753,2]
[331650393,1720605051353,-1506.19,0.00013753,2]
[331650394,1720605051363,-656.03,0.00013753,2]
[331650395,1720605051372,-500.0,0.00013753,2]
[331650396,1720605051381,-500.0,0.00013753,2]
[331650397,1720605051390,-500.0,0.00013753,2]
[331650398,1720605051399,-1039.74,0.00013753,2]
[331650399,1720605051408,-500.0,0.00013753,2]
[331650400,1720605051417,-717.52,0.00013753,2]
[331650401,1720605051426,-859.44,0.00013753,2]
[331650402,1720605051436,-500.0,0.00013753,2]
[331650403,1720605051445,-858.09,0.00013753,2]
[331650404,1720605051455,-747.51,0.00013753,2]
[331650405,1720605051464,-500.0,0.00013753,2]
[331650406,1720605051473,-500.0,0.00013753,2]
[331650407,1720605051484,-1077.14,0.00013753,2]
[331650408,1720605051495,-500.0,0.00013753,2]
[331650409,1720605051505,-877.95,0.00013753,2]
[331650410,1720605051514,-1001.11,0.00013753,2]
[331650411,1720605051523,-501.85,0.00013753,2]
[331650412,1720605051533,-500.0,0.00013753,2]
[331650413,1720605051542,-500.0,0.00013753,2]
[331650414,1720605051552,-500.0,0.00013753,2]
[331650415,1720605051562,-580.78,0.00013753,2]
[331650416,1720605051571,-805.57,0.00013753,2]
[331650417,1720605051581,-1140.04,0.00013753,2]
[331650418,1720605051591,-430.95562068,0.00013753,2]
[331650419,1720605051602,-995.6,0.00013753,2]
[331650420,1720605051612,-500.0,0.00013753,2]
[331650421,1720605051623,-500.0,0.00013753,2]
[331650422,1720605051637,-568.7,0.00013753,2]
[331650423,1720605051650,-787.74,0.00013753,2]
[331650424,1720605051659,-500.0,0.00013753,2]
[331650425,1720605051669,-500.0,0.00013753,2]
[331650426,1720605051679,-500.0,0.00013753,2]
[331650427,1720605051689,-500.0,0.00013753,2]